bitfinex/quotes_BTCUSD_20240929
["timestamp","ask_amount","ask_price","bid_price","bid_amount"]
[1727579351594,0.43234259,65930.0,65929.0,0.002827]
[1727579352713,0.40856152,65930.0,65929.0,0.002827]
[1727579353813,0.40858468,65930.0,65929.0,0.002827]
[1727579355804,0.43236586,65930.0,65929.0,0.002827]
[1727579356488,0.43240407,65930.0,65929.0,0.002827]
[1727579358526,0.43240407,65930.0,65929.0,0.000827]
[1727579358729,0.40862289,65930.0,65929.0,0.000827]
[1727579360081,0.40862289,65930.0,65929.0,0.002827]
[1727579361619,0.432404,65930.0,65929.0,0.002827]
[1727579369715,0.51840581,65930.0,65929.0,0.000827]
[1727579370201,0.432404,65930.0,65929.0,0.000827]
[1727579371828,0.432404,65930.0,65929.0,0.002827]
[1727579376161,0.43266274,65930.0,65929.0,0.002827]
[1727579379061,0.43266274,65930.0,65929.0,0.000827]
[1727579379744,0.79981768,65930.0,65929.0,0.000827]
[1727579380028,0.95620574,65930.0,65929.0,0.000827]
[1727579380474,1.16704173,65930.0,65929.0,0.000827]
[1727579380903,1.16626219,65930.0,65929.0,0.000827]
[1727579383746,1.013067,65930.0,65929.0,0.000827]
[1727579385002,0.89823189,65930.0,65929.0,0.000827]
[1727579385240,0.64274383,65930.0,65929.0,0.000827]
[1727579385646,0.4323482,65930.0,65929.0,0.000827]
[1727579387226,0.4323482,65930.0,65929.0,0.002827]
[1727579390599,0.43241433,65930.0,65929.0,0.002827]
[1727579392400,0.43241433,65930.0,65929.0,0.000827]
[1727579392615,0.43241433,65930.0,65929.0,0.002827]
[1727579393316,0.43241433,65930.0,65929.0,0.000827]
[1727579400543,0.43244206,65930.0,65929.0,0.000827]
[1727579402382,0.43244206,65930.0,65927.0,0.000828]
[1727579402383,0.1,65928.0,65927.0,0.000828]
[1727579402598,0.1,65928.0,65927.0,0.00011086]
[1727579402599,0.40205645,65928.0,65927.0,0.00011086]
[1727579403702,0.40505645,65928.0,65927.0,0.00011086]
[1727579403927,0.40422498,65928.0,65927.0,0.00011086]
[1727579404606,0.44507856,65928.0,65927.0,0.00011086]
[1727579405332,0.40422498,65928.0,65927.0,0.00011086]
[1727579406683,0.55725729,65928.0,65927.0,0.00011086]
[1727579406945,0.40422498,65928.0,65927.0,0.00011086]
[1727579407431,0.55724711,65928.0,65927.0,0.00011086]
[1727579408823,0.5571052,65928.0,65927.0,0.00011086]
[1727579410003,0.40409158,65928.0,65927.0,0.00011086]
[1727579414006,0.25468,65928.0,65927.0,0.00011086]
[1727579414246,0.40433547,65928.0,65927.0,0.00011086]
[1727579419531,0.40546058,65928.0,65927.0,0.00011086]
[1727579423493,0.61610407,65928.0,65927.0,0.00011086]
[1727579423754,0.39031692,65928.0,65927.0,0.17976983]
[1727579423988,0.15478057,65928.0,65927.0,0.17996983]
[1727579424230,0.15478057,65928.0,65927.0,0.34499451]
[1727579424231,0.07269937,65928.0,65927.0,0.34499451]
[1727579424454,0.0500088,65928.0,65927.0,0.49667651]
[1727579424698,0.0470088,65928.0,65927.0,0.49667651]
[1727579424919,0.0490088,65928.0,65927.0,0.49667651]
[1727579425142,0.0490088,65928.0,65927.0,0.34499451]
[1727579425369,0.001656,65928.0,65927.0,0.34499451]
[1727579425591,0.001656,65928.0,65927.0,0.49667651]
[1727579430097,0.001656,65928.0,65927.0,0.2321594]
[1727579430343,0.001656,65928.0,65927.0,0.34699451]
[1727579431014,0.101656,65928.0,65927.0,0.34699451]
[1727579432407,0.001656,65928.0,65927.0,0.34699451]
[1727579433543,0.001656,65928.0,65927.0,0.2321594]
[1727579433785,0.101656,65928.0,65927.0,0.2321594]
[1727579435595,0.001656,65928.0,65927.0,0.2321594]
[1727579436230,0.101656,65928.0,65927.0,0.2321594]
[1727579437438,0.001656,65928.0,65927.0,0.2321594]
[1727579440909,0.101656,65928.0,65927.0,0.2321594]
[1727579442054,0.001656,65928.0,65927.0,0.2321594]
[1727579442515,0.001656,65928.0,65927.0,0.3838414]
[1727579442726,0.001656,65928.0,65927.0,0.46437845]
[1727579446303,0.001656,65928.0,65927.0,0.3838414]
[1727579446950,0.001656,65928.0,65927.0,0.2321594]
[1727579451428,0.001656,65928.0,65927.0,0.2301594]
[1727579451639,0.001656,65928.0,65927.0,0.2321594]
[1727579454572,0.001656,65928.0,65927.0,0.2301594]
[1727579454806,0.001656,65928.0,65927.0,0.2321594]
[1727579456707,0.001656,65928.0,65927.0,0.2301594]
[1727579456934,0.001656,65928.0,65927.0,0.2321594]
[1727579461022,0.001656,65928.0,65927.0,0.3838414]
[1727579461245,0.001656,65928.0,65927.0,0.34303415]
[1727579461462,0.001656,65928.0,65927.0,0.2321594]
[1727579462153,0.001656,65928.0,65927.0,0.3838414]
[1727579465205,0.001656,65928.0,65927.0,0.2321594]
[1727579465460,0.001656,65928.0,65927.0,0.34699451]
[1727579468198,0.14700484,65928.0,65927.0,0.34699451]
[1727579469520,0.001656,65928.0,65927.0,0.34699451]
[1727579470170,0.15376051,65928.0,65927.0,0.34699451]
[1727579470376,0.25376051,65928.0,65927.0,0.34699451]
[1727579470590,0.25376048,65928.0,65927.0,0.34699451]
[1727579474172,0.25373526,65928.0,65927.0,0.34699451]
[1727579474391,0.25373526,65928.0,65927.0,0.29680494]
[1727579474627,0.25373526,65928.0,65927.0,0.3547139]
[1727579474865,0.34459354,65928.0,65927.0,0.3547139]
[1727579475719,0.34458475,65928.0,65927.0,0.3547139]
[1727579476389,0.25372538,65928.0,65927.0,0.3547139]
[1727579476600,0.25372538,65928.0,65927.0,0.2558139]
[1727579476601,0.34458475,65928.0,65927.0,0.2558139]
[1727579480451,0.34458588,65928.0,65927.0,0.2558139]
[1727579485626,0.24459016,65928.0,65927.0,0.2558139]
[1727579485841,0.34459016,65928.0,65927.0,0.2558139]
[1727579492622,0.34459016,65928.0,65927.0,0.4074959]
[1727579493464,0.25372552,65928.0,65927.0,0.4074959]
[1727579495460,0.25372862,65928.0,65927.0,0.4074959]
[1727579497393,0.25372862,65928.0,65927.0,0.14097879]
[1727579497602,0.36731082,65928.0,65927.0,0.14097879]
[1727579497828,0.36731082,65928.0,65927.0,0.06517879]
[1727579500252,0.36709515,65928.0,65927.0,0.06517879]
[1727579502472,0.25347375,65928.0,65927.0,0.06517879]
[1727579502944,0.36709515,65928.0,65927.0,0.06517879]
[1727579504194,0.25347375,65928.0,65927.0,0.06517879]
[1727579505249,0.25344809,65928.0,65927.0,0.06517879]
[1727579509458,0.40512809,65928.0,65927.0,0.06517879]
[1727579510093,0.25346165,65928.0,65927.0,0.06517879]
[1727579512615,0.34433499,65928.0,65927.0,0.06517879]
[1727579513286,0.25346165,65928.0,65927.0,0.06517879]
[1727579514608,0.34433441,65928.0,65927.0,0.06517879]
[1727579514831,0.25346165,65928.0,65927.0,0.06517879]
[1727579519124,0.40514165,65928.0,65927.0,0.06517879]
[1727579519571,0.40514165,65928.0,65927.0,0.06522768]
[1727579520493,0.40514165,65928.0,65927.0,0.00726983]
[1727579520973,0.51873529,65928.0,65927.0,0.00726983]
[1727579521650,0.40514165,65928.0,65927.0,0.00726983]
[1727579522577,0.25346165,65928.0,65927.0,0.06522768]
[1727579522819,0.51872235,65928.0,65927.0,0.06522768]
[1727579524900,0.51872235,65928.0,65927.0,0.06322768]
[1727579525802,0.40514165,65928.0,65927.0,0.06322768]
[1727579526072,0.40514165,65928.0,65927.0,0.06522768]
[1727579528348,0.40479327,65928.0,65927.0,0.06522768]
[1727579529055,0.40479327,65928.0,65927.0,0.00726983]
[1727579529492,0.40479327,65928.0,65927.0,0.06524488]
[1727579531793,0.40479327,65928.0,65927.0,0.00726983]
[1727579532041,0.51835663,65928.0,65927.0,0.00726983]
[1727579532506,0.40479327,65928.0,65927.0,0.00726983]
[1727579533860,0.51835824,65928.0,65927.0,0.00726983]
[1727579534083,0.40479327,65928.0,65927.0,0.00726983]
[1727579534291,0.253336,65928.0,65927.0,0.00726983]
[1727579534522,0.40494757,65928.0,65927.0,0.00726983]
[1727579534755,0.25326757,65928.0,65927.0,0.06524007]
[1727579534982,0.40494757,65928.0,65927.0,0.00726983]
[1727579535215,0.51851481,65928.0,65927.0,0.00726983]
[1727579535452,0.40494757,65928.0,65927.0,0.06523672]
[1727579539836,0.40494757,65928.0,65927.0,0.00526983]
[1727579540807,0.40494757,65928.0,65927.0,0.00726983]
[1727579541538,0.40494757,65928.0,65927.0,0.06523672]
[1727579541776,0.40494757,65928.0,65927.0,0.00726983]
[1727579543125,0.40452155,65928.0,65927.0,0.00726983]
[1727579552836,0.40446015,65928.0,65927.0,0.00726983]
[1727579553133,0.40446015,65928.0,65927.0,0.00011086]
[1727579553134,0.76898332,65928.0,65927.0,0.00011086]
[1727579553610,0.49776015,65928.0,65927.0,0.00011086]
[1727579555936,0.49876015,65928.0,65927.0,0.00011086]
[1727579556423,0.49776015,65928.0,65927.0,0.00011086]
[1727579556664,0.50076015,65928.0,65927.0,0.00011086]
[1727579559255,0.49776015,65928.0,65927.0,0.00011086]
[1727579559733,0.50176015,65928.0,65927.0,0.00011086]
[1727579560904,0.52554223,65928.0,65927.0,0.00011086]
[1727579561144,0.52154223,65928.0,65927.0,0.00011086]
[1727579561379,0.52554223,65928.0,65927.0,0.00011086]
[1727579562555,0.522318,65928.0,65927.0,0.00011086]
[1727579562783,0.527318,65928.0,65927.0,0.00011086]
[1727579564202,0.522318,65928.0,65927.0,0.00011086]
[1727579564436,0.528318,65928.0,65927.0,0.00011086]
[1727579567247,0.50453592,65928.0,65927.0,0.00011086]
[1727579567474,0.50452203,65928.0,65927.0,0.00011086]
[1727579570255,0.52830408,65928.0,65927.0,0.00011086]
[1727579570712,0.79952725,65928.0,65927.0,0.00011086]
[1727579571413,0.7757452,65928.0,65927.0,0.00011086]
[1727579571874,0.50452203,65928.0,65927.0,0.00011086]
[1727579572100,0.5043669,65928.0,65927.0,0.00011086]
[1727579574732,0.4110669,65928.0,65927.0,0.00011086]
[1727579576457,0.5471216,65928.0,65927.0,0.00011086]
[1727579576704,0.4110669,65928.0,65927.0,0.00011086]
[1727579577151,0.41129599,65928.0,65927.0,0.00011086]
[1727579577603,0.40529599,65928.0,65927.0,0.00011086]
[1727579577853,0.41229599,65928.0,65927.0,0.00011086]
[1727579579977,0.42907774,65928.0,65927.0,0.00011086]
[1727579580969,0.28511775,65928.0,65927.0,0.00011086]
[1727579581212,0.43707076,65928.0,65927.0,0.00011086]
[1727579581696,0.42907076,65928.0,65927.0,0.00011086]
[1727579582122,0.43707076,65928.0,65927.0,0.00011086]
[1727579584024,0.41328901,65928.0,65927.0,0.00011086]
[1727579585439,0.41334145,65928.0,65927.0,0.00011086]
[1727579590337,0.41344265,65928.0,65927.0,0.00011086]
[1727579591357,0.4372233,65928.0,65927.0,0.00011086]
[1727579592636,0.41344265,65928.0,65927.0,0.00011086]
[1727579594555,0.54992781,65928.0,65927.0,0.00211086]
[1727579595075,0.54992781,65928.0,65927.0,0.00706983]
[1727579595344,0.41403695,65928.0,65927.0,0.09026983]
[1727579598723,0.55023433,65928.0,65927.0,0.09026983]
[1727579600172,0.55039769,65928.0,65927.0,0.09026983]
[1727579601629,0.41415319,65928.0,65927.0,0.09026983]
[1727579604242,0.41415319,65928.0,65927.0,0.08826983]
[1727579604702,0.41415319,65928.0,65927.0,0.09026983]
[1727579609889,0.41374431,65928.0,65927.0,0.09026983]
[1727579614638,0.41372538,65928.0,65927.0,0.09026983]
[1727579626798,0.4375058,65928.0,65927.0,0.09026983]
[1727579627932,0.41372538,65928.0,65927.0,0.09026983]
[1727579630979,0.41372538,65928.0,65927.0,0.09046983]
[1727579631488,0.54998161,65928.0,65927.0,0.09046983]
[1727579634141,0.261336,65928.0,65927.0,0.09046983]
[1727579634344,0.55023481,65928.0,65927.0,0.09046983]
[1727579638436,0.41397477,65928.0,65927.0,0.09046983]
[1727579639241,0.261336,65928.0,65927.0,0.09046983]
[1727579639467,0.55027635,65928.0,65927.0,0.09046983]
[1727579641497,0.54227635,65928.0,65927.0,0.09046983]
[1727579641926,0.55027635,65928.0,65927.0,0.09046983]
[1727579642352,0.54227635,65928.0,65927.0,0.09046983]
[1727579642599,0.54231701,65928.0,65927.0,0.09046983]
[1727579642844,0.41203676,65928.0,65927.0,0.09046983]
[1727579646537,0.54832026,65928.0,65927.0,0.09046983]
[1727579646969,0.41203676,65928.0,65927.0,0.09046983]
[1727579647800,0.54831607,65928.0,65927.0,0.09046983]
[1727579652533,0.54831454,65928.0,65927.0,0.09046983]
[1727579653704,0.54231454,65928.0,65927.0,0.09046983]
[1727579653929,0.40603676,65928.0,65927.0,0.09046983]
[1727579654143,0.55031285,65928.0,65927.0,0.09046983]
[1727579654362,0.41403676,65928.0,65927.0,0.09046983]
[1727579654606,0.54231848,65928.0,65927.0,0.09046983]
[1727579655058,0.55031848,65928.0,65927.0,0.09046983]
[1727579656764,0.41403676,65928.0,65927.0,0.09046983]
[1727579657825,0.55033889,65928.0,65927.0,0.09046983]
[1727579658052,0.41403676,65928.0,65927.0,0.09046983]
[1727579662112,0.41403676,65928.0,65927.0,0.08846983]
[1727579662352,0.41392861,65928.0,65927.0,0.00526983]
[1727579662816,0.41392861,65928.0,65927.0,0.00011086]
[1727579667071,0.41407659,65928.0,65927.0,0.00011086]
[1727579667910,0.40607659,65928.0,65927.0,0.00011086]
[1727579669224,0.41507659,65928.0,65927.0,0.00011086]
[1727579669685,0.40607659,65928.0,65927.0,0.00011086]
[1727579670181,0.41507659,65928.0,65927.0,0.00011086]
[1727579670415,0.43512458,65928.0,65927.0,0.00011086]
[1727579670642,0.45890549,65928.0,65927.0,0.00011086]
[1727579670888,0.43512458,65928.0,65927.0,0.00011086]
[1727579671860,0.43516628,65928.0,65927.0,0.00011086]
[1727579674868,0.52826628,65928.0,65927.0,0.00011086]
[1727579676525,0.50821829,65928.0,65927.0,0.00011086]
[1727579678901,0.50821829,65928.0,65927.0,0.00211086]
[1727579679126,0.50821829,65928.0,65927.0,0.00011086]
[1727579679590,0.49921829,65928.0,65927.0,0.00011086]
[1727579680092,0.50821829,65928.0,65927.0,0.00011086]
[1727579680549,0.49921829,65928.0,65927.0,0.00011086]
[1727579680787,0.50721829,65928.0,65927.0,0.00011086]
[1727579681695,0.50815464,65928.0,65927.0,0.00011086]
[1727579686445,0.50810896,65928.0,65927.0,0.00011086]
[1727579691737,0.41500896,65928.0,65927.0,0.00011086]
[1727579700768,0.41477561,65928.0,65927.0,0.00011086]
[1727579709943,0.42677561,65928.0,65927.0,0.00111086]
[1727579714924,0.45048106,65928.0,65927.0,0.00111086]
[1727579716034,0.42670001,65928.0,65927.0,0.00111086]
[1727579716528,0.42670001,65928.0,65927.0,0.00311086]
[1727579716767,0.42670001,65928.0,65927.0,0.08426983]
[1727579716997,0.42670001,65928.0,65927.0,0.08446983]
[1727579719159,0.42680599,65928.0,65927.0,0.08446983]
[1727579724115,0.42680192,65928.0,65927.0,0.08446983]
[1727579728947,0.42682902,65928.0,65927.0,0.08446983]
[1727579733822,0.42683809,65928.0,65927.0,0.08446983]
[1727579738909,0.42683292,65928.0,65927.0,0.00826983]
[1727579743598,0.42682147,65928.0,65927.0,0.00826983]
[1727579746307,0.45060203,65928.0,65927.0,0.00826983]
[1727579753397,0.29711656,65928.0,65927.0,0.00826983]
[1727579753622,0.45061506,65928.0,65927.0,0.00826983]
[1727579756676,0.60057506,65928.0,65927.0,0.00826983]
[1727579758493,0.60061446,65928.0,65927.0,0.00826983]
[1727579758979,0.60061446,65928.0,65927.0,0.09116983]
[1727579761804,0.6005846,65928.0,65927.0,0.09116983]
[1727579763895,0.6005846,65928.0,65927.0,0.00826983]
[1727579766508,0.44707656,65928.0,65927.0,0.00826983]
[1727579766734,0.60055623,65928.0,65927.0,0.00826983]
[1727579771613,0.6006021,65928.0,65927.0,0.00826983]
[1727579771832,0.6006021,65928.0,65927.0,0.00626983]
[1727579772053,0.6006021,65928.0,65927.0,0.00826983]
[1727579776345,0.60055257,65928.0,65927.0,0.00826983]
[1727579779926,0.84834063,65928.0,65927.0,0.00111086]
[1727579780166,1.03942649,65928.0,65927.0,0.00111086]
[1727579780403,0.82456007,65928.0,65927.0,0.00111086]
[1727579780871,0.81656007,65928.0,65927.0,0.00111086]
[1727579781107,0.95772062,65928.0,65927.0,0.00011086]
[1727579781340,1.01942649,65928.0,65927.0,0.00011086]
[1727579781570,0.81756007,65928.0,65927.0,0.00011086]
[1727579782802,0.83156007,65928.0,65927.0,0.00011086]
[1727579783038,0.81756007,65928.0,65927.0,0.00011086]
[1727579783282,0.84234214,65928.0,65927.0,0.00011086]
[1727579783533,0.85634214,65928.0,65927.0,0.00011086]
[1727579783772,1.07120856,65928.0,65927.0,0.00011086]
[1727579784468,1.04742649,65928.0,65927.0,0.00011086]
[1727579785162,0.89103843,65928.0,65927.0,0.00011086]
[1727579785412,0.67617201,65928.0,65927.0,0.00011086]
[1727579786126,0.67534985,65928.0,65927.0,0.00011086]
[1727579788935,0.69913187,65928.0,65927.0,0.00011086]
[1727579791272,0.67534985,65928.0,65927.0,0.00011086]
[1727579799205,0.69913194,65928.0,65927.0,0.00011086]
[1727579801401,0.67534985,65928.0,65927.0,0.00011086]
[1727579801844,0.73777809,65928.0,65927.0,0.00011086]
[1727579803247,0.279682,65927.0,65926.0,8.6e-07]
[1727579803506,0.279682,65927.0,65919.0,0.001656]
[1727579803507,0.369896,65921.0,65919.0,0.001656]
[1727579803743,0.82304146,65921.0,65919.0,0.001656]
[1727579804472,0.82304146,65921.0,65895.0,0.01234732]
[1727579804473,0.251754,65896.0,65895.0,0.01234732]
[1727579804702,0.51924296,65896.0,65895.0,0.01234732]
[1727579804937,0.40440785,65896.0,65895.0,0.07190521]
[1727579805148,0.40440785,65896.0,65895.0,0.01234732]
[1727579805992,0.40269438,65896.0,65895.0,0.01234732]
[1727579806844,0.262754,65896.0,65895.0,0.01234732]
[1727579807055,0.260754,65896.0,65895.0,0.01234732]
[1727579807270,0.260754,65896.0,65895.0,0.01434732]
[1727579807482,0.31697494,65896.0,65895.0,0.01434732]
[1727579807695,0.271754,65896.0,65895.0,0.01434732]
[1727579807903,0.271754,65896.0,65895.0,0.01454732]
[1727579808146,0.271754,65896.0,65895.0,0.09184732]
[1727579815341,0.271754,65896.0,65895.0,0.09267532]
[1727579815804,0.271754,65896.0,65895.0,0.14255269]
[1727579818395,0.262754,65896.0,65895.0,0.14255269]
[1727579818658,0.271754,65896.0,65895.0,0.14255269]
[1727579818884,0.260754,65896.0,65895.0,0.14255269]
[1727579819754,0.271754,65896.0,65895.0,0.14255269]
[1727579820700,0.271754,65896.0,65895.0,0.09267532]
[1727579820925,0.271754,65896.0,65895.0,0.14270208]
[1727579821424,0.262754,65896.0,65895.0,0.14270208]
[1727579821649,0.269754,65896.0,65895.0,0.14270208]
[1727579822095,0.258754,65896.0,65895.0,0.14270208]
[1727579822317,0.267754,65896.0,65895.0,0.14270208]
[1727579822578,0.35670832,65896.0,65895.0,0.06540208]
[1727579822812,0.34070832,65896.0,65895.0,0.01337532]
[1727579823041,0.34070832,65896.0,65895.0,0.01317532]
[1727579823042,0.35170832,65896.0,65895.0,0.01317532]
[1727579823285,0.34970832,65896.0,65895.0,0.01317532]
[1727579823734,0.35870832,65896.0,65895.0,0.01317532]
[1727579824475,0.34970832,65896.0,65895.0,0.01317532]
[1727579824698,0.35670832,65896.0,65895.0,0.01317532]
[1727579825192,0.34970832,65896.0,65895.0,0.01317532]
[1727579825427,0.36370832,65896.0,65895.0,0.01317532]
[1727579825658,0.35470832,65896.0,65895.0,0.01317532]
[1727579826113,0.36870832,65896.0,65895.0,0.01317532]
[1727579826376,0.35470832,65896.0,65895.0,0.01317532]
[1727579826615,0.36870832,65896.0,65895.0,0.01317532]
[1727579827548,0.39170832,65896.0,65895.0,0.01317532]
[1727579827787,0.54146987,65896.0,65895.0,0.01317532]
[1727579828765,0.56526408,65896.0,65895.0,0.01317532]
[1727579832824,0.54146987,65896.0,65895.0,0.01317532]
[1727579835130,0.54147603,65896.0,65895.0,0.01317532]
[1727579835635,0.49635672,65896.0,65895.0,0.01317532]
[1727579836091,0.5652724,65896.0,65895.0,0.01317532]
[1727579836631,0.52015099,65896.0,65895.0,0.01317532]
[1727579837334,0.49635672,65896.0,65895.0,0.01317532]
[1727579838038,0.56404672,65896.0,65895.0,0.01317532]
[1727579839612,0.49635672,65896.0,65895.0,0.01317532]
[1727579840058,0.52015098,65896.0,65895.0,0.01317532]
[1727579840529,0.76097831,65896.0,65895.0,0.01317532]
[1727579842002,0.57612399,65896.0,65895.0,0.01317532]
[1727579842236,0.55232973,65896.0,65895.0,0.01317532]
[1727579842674,0.4620764,65896.0,65895.0,0.01317532]
[1727579843716,0.57489307,65896.0,65895.0,0.01317532]
[1727579844171,0.59868685,65896.0,65895.0,0.01317532]
[1727579844625,0.48587018,65896.0,65895.0,0.01317532]
[1727579845752,0.59891651,65896.0,65895.0,0.01317532]
[1727579845973,0.48587018,65896.0,65895.0,0.01317532]
[1727579846645,0.48606836,65896.0,65895.0,0.01317532]
[1727579847782,0.46227458,65896.0,65895.0,0.01317532]
[1727579851440,0.46248666,65896.0,65895.0,0.01317532]
[1727579852595,0.57550967,65896.0,65895.0,0.01317532]
[1727579855598,0.43948666,65896.0,65895.0,0.09117532]
[1727579855838,0.43073826,65896.0,65895.0,0.09317532]
[1727579856519,0.43073826,65896.0,65895.0,0.14331173]
[1727579857467,0.43073826,65896.0,65895.0,0.23641173]
[1727579858626,0.41673826,65896.0,65895.0,0.23641173]
[1727579858868,0.52912308,65896.0,65895.0,0.23641173]
[1727579859088,0.54212308,65896.0,65895.0,0.23641173]
[1727579859320,0.42873826,65896.0,65895.0,0.23641173]
[1727579859544,0.41573826,65896.0,65895.0,0.23641173]
[1727579859768,0.43952981,65896.0,65895.0,0.23641173]
[1727579859998,0.45052981,65896.0,65895.0,0.23641173]
[1727579860682,0.45052981,65896.0,65895.0,0.18627532]
[1727579861392,0.5410678,65896.0,65895.0,0.09137532]
[1727579861637,0.5410678,65896.0,65895.0,0.09337532]
[1727579862363,0.5410678,65896.0,65895.0,0.09317532]
[1727579862611,0.51727625,65896.0,65895.0,0.09117532]
[1727579863504,0.51727625,65896.0,65895.0,0.09317532]
[1727579865775,0.54106825,65896.0,65895.0,0.09317532]
[1727579866283,0.54106825,65896.0,65895.0,0.01517532]
[1727579866991,0.51727625,65896.0,65895.0,0.01517532]
[1727579867920,0.42673826,65896.0,65895.0,0.01517532]
[1727579868612,0.56276127,65896.0,65895.0,0.01517532]
[1727579868859,0.42673826,65896.0,65895.0,0.01517532]
[1727579869315,0.56276127,65896.0,65895.0,0.01517532]
[1727579869988,0.58655348,65896.0,65895.0,0.01517532]
[1727579870664,0.45113074,65896.0,65895.0,0.01517532]
[1727579878275,0.44013074,65896.0,65895.0,0.01517532]
[1727579878743,0.42713074,65896.0,65895.0,0.01517532]
[1727579878968,0.43913074,65896.0,65895.0,0.01517532]
[1727579879187,0.44913074,65896.0,65895.0,0.01517532]
[1727579879413,0.46013074,65896.0,65895.0,0.01517532]
[1727579879638,0.45013074,65896.0,65895.0,0.01517532]
[1727579880094,0.45913074,65896.0,65895.0,0.01517532]
[1727579882093,0.69723124,65896.0,65895.0,0.01317532]
[1727579882331,0.83332088,65896.0,65895.0,0.01317532]
[1727579882568,0.69723124,65896.0,65895.0,0.01317532]
[1727579883014,0.67343903,65896.0,65895.0,0.01317532]
[1727579886403,0.69723182,65896.0,65895.0,0.01317532]
[1727579887608,0.67343903,65896.0,65895.0,0.01317532]
[1727579888368,0.90034561,65896.0,65895.0,0.001317]
[1727579888610,0.90034561,65896.0,65895.0,1e-06]
[1727579888611,0.80759199,65896.0,65895.0,1e-06]
[1727579888848,0.456768,65890.0,65889.0,0.000828]
[1727579889106,0.72231416,65890.0,65889.0,0.000828]
[1727579891304,0.74031416,65890.0,65889.0,0.000828]
[1727579892036,0.76411192,65890.0,65889.0,0.000828]
[1727579892753,0.76256278,65890.0,65889.0,0.000828]
[1727579892979,0.81831773,65890.0,65889.0,0.000828]
[1727579893694,0.87860215,65890.0,65889.0,0.000828]
[1727579894189,0.66760668,65890.0,65889.0,0.000828]
[1727579894702,0.61185173,65890.0,65889.0,0.000828]
[1727579895175,0.62054525,65890.0,65889.0,0.000828]
[1727579895379,0.59674749,65890.0,65889.0,0.000828]
[1727579895835,0.51624749,65890.0,65889.0,0.000828]
[1727579898748,0.54004509,65890.0,65889.0,0.000828]
[1727579900931,0.55969533,65890.0,65889.0,0.000828]
[1727579901419,0.53589773,65890.0,65889.0,0.000828]
[1727579902540,0.51624749,65890.0,65889.0,0.000828]
[1727579903411,0.65199225,65890.0,65889.0,0.000828]
[1727579904344,0.67578998,65890.0,65889.0,0.000828]
[1727579905747,0.65199225,65890.0,65889.0,0.000828]
[1727579908634,0.65364825,65890.0,65889.0,0.000828]
[1727579908860,0.67744589,65890.0,65889.0,0.000828]
[1727579911137,0.65364825,65890.0,65889.0,0.000828]
[1727579912375,0.51790349,65890.0,65889.0,0.000828]
[1727579914302,0.67429155,65890.0,65889.0,0.000828]
[1727579914546,0.69808923,65890.0,65889.0,0.000828]
[1727579917433,0.54170117,65890.0,65889.0,0.000828]
[1727579923613,0.53370117,65890.0,65889.0,0.000828]
[1727579924042,0.53770117,65890.0,65889.0,0.000828]
[1727579924470,0.55170117,65890.0,65889.0,0.000828]
[1727579928387,0.58985213,65890.0,65889.0,0.000828]
[1727579928593,0.70468724,65890.0,65889.0,0.000828]
[1727579930317,0.55170117,65890.0,65889.0,0.000828]
[1727579935256,0.57219104,65890.0,65889.0,0.000828]
[1727579938134,0.45520117,65890.0,65889.0,0.000828]
[1727579948436,0.3369152,65890.0,65889.0,0.000828]
[1727579948667,0.3369152,65890.0,65889.0,0.076228]
[1727579948880,0.31311752,65890.0,65889.0,0.076228]
[1727579949079,0.45174977,65890.0,65889.0,0.076228]
[1727579950180,0.42795263,65890.0,65889.0,0.076228]
[1727579951743,0.58126453,65890.0,65889.0,0.076228]
[1727579952223,0.42795263,65890.0,65889.0,0.076228]
[1727579953124,0.31311752,65890.0,65889.0,0.076228]
[1727579953348,0.31311752,65890.0,65889.0,0.173628]
[1727579953833,0.281424,65890.0,65889.0,0.173628]
[1727579954037,0.281424,65890.0,65889.0,0.29021225]
[1727579954038,0.181424,65890.0,65889.0,0.29021225]
[1727579954250,0.29497035,65890.0,65889.0,0.29221225]
[1727579954515,0.249513,65890.0,65889.0,0.34419778]
[1727579954725,0.181424,65890.0,65889.0,0.34419778]
[1727579954953,0.167424,65890.0,65889.0,0.37861756]
[1727579955184,0.153424,65890.0,65889.0,0.34419778]
[1727579955394,0.22379761,65890.0,65889.0,0.34419778]
[1727579955609,0.21079761,65890.0,65889.0,0.34419778]
[1727579955847,0.253424,65890.0,65889.0,0.34419778]
[1727579956067,0.31679764,65890.0,65889.0,0.34419778]
[1727579956288,0.161424,65890.0,65889.0,0.34419778]
[1727579956523,0.161424,65890.0,65889.0,0.29221225]
[1727579956739,0.001656,65890.0,65889.0,0.54025285]
[1727579956954,0.010656,65890.0,65889.0,0.54025285]
[1727579957225,0.017656,65890.0,65889.0,0.49585372]
[1727579957458,0.37865358,65899.0,65898.0,0.17654914]
[1727579957688,0.37865358,65899.0,65898.0,0.29138425]
[1727579958195,0.251747,65899.0,65898.0,0.34321877]
[1727579958418,0.251747,65899.0,65898.0,0.33921877]
[1727579958650,0.251747,65899.0,65898.0,0.33221877]
[1727579958886,0.1,65899.0,65898.0,0.33221877]
[1727579959131,0.012,65899.0,65898.0,0.33221877]
[1727579959352,0.251745,65900.0,65899.0,0.002]
[1727579959599,0.251745,65900.0,65899.0,0.0664]
[1727579959816,0.02378932,65903.0,65899.0,0.11809827]
[1727579960046,0.15174,65902.0,65901.0,0.11483511]
[1727579960512,0.15174,65902.0,65901.0,0.15617908]
[1727579960938,0.15174,65902.0,65901.0,0.17210046]
[1727579961384,0.15174,65902.0,65901.0,0.15617908]
[1727579961622,0.15174,65902.0,65901.0,0.20323511]
[1727579962054,0.15174,65902.0,65901.0,0.25356085]
[1727579962267,0.251736,65904.0,65901.0,0.15616085]
[1727579962493,0.251736,65904.0,65902.0,0.0974]
[1727579962707,0.151738,65903.0,65902.0,0.0974]
[1727579963419,0.151738,65903.0,65902.0,0.1728]
[1727579964758,0.151738,65903.0,65902.0,0.1738]
[1727579964970,0.151738,65903.0,65902.0,0.1778]
[1727579965404,0.151738,65903.0,65902.0,0.1808]
[1727579967631,0.151738,65903.0,65902.0,0.23112039]
[1727579968534,0.153392,65903.0,65902.0,0.23112039]
[1727579972061,0.001654,65903.0,65902.0,0.23112039]
[1727579972285,0.153392,65903.0,65902.0,0.23112039]
[1727579972550,0.001654,65903.0,65902.0,0.23112039]
[1727579972773,0.001654,65903.0,65902.0,0.38589492]
[1727579973012,0.001654,65903.0,65902.0,0.38286039]
[1727579974497,0.001654,65903.0,65902.0,0.3459555]
[1727579974970,0.001654,65903.0,65902.0,0.4976955]
[1727579975819,0.001654,65903.0,65902.0,0.3459555]
[1727579984597,0.001654,65903.0,65902.0,0.4976955]
[1727579984825,0.001654,65903.0,65902.0,0.3459555]
[1727579995319,0.001654,65903.0,65902.0,0.4976955]
[1727579995542,0.001654,65903.0,65902.0,0.3459555]
[1727579997282,0.001654,65903.0,65902.0,0.4976955]
[1727579998758,0.001654,65903.0,65902.0,0.3459555]